bitfinex-derivatives/quotes_SOLF0:USTF0_20250818
["timestamp","ask_amount","ask_price","bid_price","bid_amount"]
[1755540784617,136.34,183.57,183.5,3.0]
[1755540784819,3.93345217,183.56,183.5,3.0]
[1755540785014,136.34,183.57,183.5,3.0]
[1755540785216,3.93345217,183.56,183.5,3.0]
[1755540785418,136.34,183.57,183.5,3.0]
[1755540785716,3.93374114,183.56,183.5,3.0]
[1755540786017,3.07,183.54,183.5,3.0]
[1755540786222,136.34,183.57,183.5,3.0]
[1755540786523,3.93345437,183.56,183.5,3.0]
[1755540786721,3.93345437,183.55,183.49,3.84498664]
[1755540786922,136.34,183.57,183.49,6.84498664]
[1755540787123,3.93209219,183.56,183.49,6.84498664]
[1755540787423,136.34,183.57,183.49,12.29198664]
[1755540787723,3.93002709,183.56,183.49,12.29198664]
[1755540788025,136.34,183.57,183.49,12.29198664]
[1755540788223,136.34,183.57,183.49,6.84498664]
[1755540788224,3.93163645,183.56,183.49,6.84498664]
[1755540788525,136.34,183.57,183.49,6.84498664]
[1755540788717,3.93088942,183.56,183.49,6.84498664]
[1755540788912,136.34,183.57,183.49,6.84498664]
[1755540789118,3.93070022,183.56,183.49,6.84498664]
[1755540789317,136.34,183.57,183.49,6.84498664]
[1755540789612,3.93001522,183.56,183.49,6.84498664]
[1755540789817,136.34,183.57,183.49,6.84498664]
[1755540790120,3.93001522,183.56,183.49,6.84498664]
[1755540790322,136.34,183.57,183.49,12.29198664]
[1755540790524,3.92972775,183.56,183.49,12.29198664]
[1755540790718,136.34,183.57,183.49,12.29198664]
[1755540790919,3.92972775,183.56,183.49,6.84498664]
[1755540791114,3.07,183.56,183.49,6.84498664]
[1755540791920,3.9274168,183.55,183.49,0.03729188]
[1755540792115,3.07,183.53,183.49,0.03729188]
[1755540792320,3.07,183.52,183.49,0.03729188]
[1755540792521,3.07,183.51,183.49,0.03729188]
[1755540792720,3.07,183.5,183.49,0.03729188]
[1755540796129,7.00746171,183.5,183.49,0.03729188]
[1755540801236,3.93746171,183.5,183.49,0.03729188]
[1755540801446,7.00746171,183.55,183.49,3.03729188]
[1755540801740,3.07,183.53,183.49,0.03729188]
[1755540801930,7.00746171,183.52,183.49,0.03729188]
[1755540802134,3.07,183.52,183.49,0.03729188]
[1755540802432,7.01018134,183.51,183.49,0.03729188]
[1755540802635,7.01018134,183.5,183.49,0.03729188]
[1755540804034,3.94018134,183.5,183.49,0.03729188]
[1755540809439,3.94018134,183.5,183.49,3.10729188]
[1755540809634,3.94018134,183.5,183.49,0.03729188]
[1755540809853,7.01018134,183.5,183.49,0.03729188]
[1755540811650,3.94018134,183.5,183.49,3.10729188]
[1755540812046,3.07,183.54,183.49,0.03729188]
[1755540812248,3.94061067,183.53,183.51,3.07]
[1755540812455,3.94061067,183.52,183.49,3.10729188]
[1755540812650,3.07,183.54,183.5,3.07]
[1755540812849,3.94061058,183.53,183.5,3.07]
[1755540813151,3.94061058,183.52,183.5,3.07]
[1755540813348,3.07,183.54,183.5,3.07]
[1755540813540,3.94096874,183.53,183.5,3.07]
[1755540813740,3.07,183.53,183.5,3.07]
[1755540815252,3.94132051,183.52,183.49,0.03729188]
[1755540815464,3.07,183.54,183.49,0.03729188]
[1755540815658,136.2,183.55,183.49,0.03729188]
[1755540815659,3.07,183.5,183.49,0.03729188]
[1755540816047,7.01103512,183.5,183.49,0.03729188]
[1755540819360,3.94103512,183.5,183.49,0.03729188]
[1755540819555,7.01103512,183.5,183.49,0.03729188]
[1755540822765,3.94103512,183.5,183.49,0.03729188]
[1755540823165,7.01103512,183.5,183.49,0.03729188]
[1755540824765,3.03,183.49,183.42,3.07]
[1755540825065,144.67215085,183.48,183.42,3.07]
[1755540825265,3.03,183.46,183.42,3.07]
[1755540827464,3.03,183.46,183.39,3.80769476]
[1755540827465,3.03,183.47,183.39,3.80769476]
[1755540827660,8.87736426,183.46,183.39,3.80769476]
[1755540827966,8.87736426,183.45,183.42,3.07]
[1755540828167,3.03,183.46,183.42,3.07]
[1755540828369,8.87940808,183.45,183.42,3.07]
[1755540828568,3.03,183.46,183.42,3.07]
[1755540828760,8.87885303,183.45,183.42,3.07]
[1755540829069,3.03,183.46,183.42,3.07]
[1755540829266,8.87777979,183.45,183.39,3.80769476]
[1755540829467,3.03,183.46,183.42,3.07]
[1755540829667,3.95013422,183.45,183.42,3.07]
[1755540829864,3.03,183.46,183.42,3.07]
[1755540830065,3.94877584,183.45,183.42,3.07]
[1755540830267,3.03,183.46,183.39,3.80769476]
[1755540830467,3.94778568,183.45,183.41,3.07]
[1755540830768,3.03,183.46,183.42,3.07]
[1755540830962,3.94737629,183.45,183.42,3.07]
[1755540831163,3.03,183.46,183.42,3.07]
[1755540831364,3.94723632,183.45,183.42,3.07]
[1755540831565,3.03,183.46,183.42,3.07]
[1755540831768,3.94723164,183.45,183.42,3.07]
[1755540831970,3.03,183.47,183.42,3.07]
[1755540832171,8.86709388,183.46,183.42,3.07]
[1755540832370,8.86709388,183.45,183.42,3.07]
[1755540832572,2.85,183.46,183.42,3.07]
[1755540832773,8.9184942,183.45,183.42,3.07]
[1755540832972,2.85,183.46,183.42,3.07]
[1755540833273,8.91849772,183.45,183.42,3.07]
[1755540833574,2.85,183.43,183.35,3.01]
[1755540833866,145.03739484,183.42,183.35,3.01]
[1755540834070,136.12,183.42,183.35,3.01]
[1755540834260,138.97,183.43,183.37,3.01]
[1755540834464,3.94491276,183.42,183.38,3.01]
[1755540834663,138.97,183.43,183.4,3.01]
[1755540835171,136.12,183.43,183.36,3.80769476]
[1755540835372,11.76516156,183.42,183.36,3.80769476]
[1755540835577,6.79479796,183.41,183.36,6.81769476]
[1755540835872,2.85,183.41,183.37,3.01]
[1755540836269,2.85,183.42,183.37,3.01]
[1755540836467,2.85,183.41,183.37,3.01]
[1755540837579,136.12,183.43,183.37,3.01]
[1755540837872,2.85,183.41,183.37,3.01]
[1755540838379,138.97,183.43,183.35,3.01]
[1755540838673,3.94027382,183.42,183.35,3.01]
[1755540838877,138.97,183.43,183.35,3.01]
[1755540839178,8.90523389,183.42,183.35,3.01]
[1755540839374,138.97,183.43,183.35,3.01]
[1755540839571,3.93947854,183.42,183.35,3.01]
[1755540839878,138.97,183.43,183.35,3.01]
[1755540840179,3.93928563,183.42,183.35,3.01]
[1755540840378,2.85,183.43,183.35,3.01]
[1755540840574,3.93916709,183.42,183.35,3.01]
[1755540840778,50.0,183.47,183.41,3.01]
[1755540840973,3.93980115,183.46,183.42,3.01]
[1755540841173,2.85,183.46,183.42,3.01]
[1755540842382,50.0,183.47,183.41,3.01]
[1755540842582,3.94033551,183.46,183.42,3.01]
[1755540842875,50.0,183.47,183.43,3.01]
[1755540842876,52.85,183.47,183.43,3.01]
[1755540843075,3.94032777,183.46,183.43,3.01]
[1755540843270,2.85,183.5,183.44,3.01]
[1755540843477,8.90657507,183.49,183.43,3.80769476]
[1755540843671,2.85,183.5,183.44,3.01]
[1755540843886,2.85,183.54,183.46,3.80769476]
[1755540844089,145.00511985,183.53,183.47,3.01]
[1755540844379,2.85,183.51,183.42,3.01]
[1755540844577,2.85,183.49,183.42,3.01]
[1755540844775,8.90511985,183.48,183.42,3.01]
[1755540844973,2.85,183.46,183.42,3.01]
[1755540845377,2.85,183.51,183.4,3.80769476]
[1755540845575,2.85,183.48,183.34,3.80769476]
[1755540845778,2.85,183.45,183.36,3.01]
[1755540846086,8.90103942,183.44,183.36,3.01]
[1755540846279,138.93,183.47,183.38,3.01]
[1755540846584,8.90138528,183.46,183.38,3.01]
[1755540846780,138.93,183.47,183.38,3.01]
[1755540846979,8.90121326,183.46,183.38,3.01]
[1755540847279,138.93,183.47,183.38,3.01]
[1755540847483,8.90184098,183.46,183.38,3.01]
[1755540847684,2.85,183.47,183.38,3.01]
[1755540847984,8.90184096,183.46,183.38,3.01]
[1755540848285,3.94048287,183.45,183.38,3.01]
[1755540848484,2.85,183.47,183.38,3.01]
[1755540848690,8.90584276,183.46,183.4,3.80769476]
[1755540848985,2.85,183.51,183.41,3.01]
[1755540849297,144.96749103,183.5,183.41,3.01]
[1755540849477,8.90749103,183.49,183.41,3.01]
[1755540849681,136.06,183.5,183.4,3.80769476]
[1755540849682,2.85,183.47,183.4,3.80769476]
[1755540849882,8.90749103,183.46,183.38,3.01]
[1755540850089,8.90749103,183.45,183.38,3.01]
[1755540850386,2.85,183.47,183.38,3.01]
[1755540850588,8.90990254,183.46,183.38,3.01]
[1755540850782,8.90990254,183.45,183.38,3.01]
[1755540850984,2.85,183.47,183.38,3.01]
[1755540851284,8.91521797,183.46,183.38,3.01]
[1755540851489,8.91521797,183.45,183.38,3.01]
[1755540851681,2.85,183.47,183.38,3.01]
[1755540851886,8.9161534,183.46,183.38,3.01]
[1755540852187,8.9161534,183.45,183.38,3.01]
[1755540852494,2.85,183.47,183.38,3.01]
[1755540852690,8.91894482,183.46,183.38,3.01]
[1755540852891,8.91894482,183.45,183.38,3.01]
[1755540853190,2.85,183.47,183.38,3.01]
[1755540853391,8.92386407,183.46,183.38,3.01]
[1755540853586,8.92386407,183.45,183.38,3.01]
[1755540853790,2.85,183.47,183.38,3.01]
[1755540854087,8.92653525,183.46,183.38,3.01]
[1755540854287,8.92653525,183.45,183.38,3.01]
[1755540854488,2.85,183.47,183.38,3.01]
[1755540854692,2.85,183.45,183.38,3.01]
[1755540854887,2.85,183.48,183.38,3.01]
[1755540855085,8.92778263,183.47,183.38,3.01]
[1755540855391,8.92778263,183.46,183.38,3.01]
[1755540855587,8.92778263,183.45,183.38,3.01]
[1755540855786,2.85,183.48,183.38,3.01]
[1755540855987,2.85,183.46,183.38,3.01]
[1755540856191,8.93136701,183.45,183.38,3.01]
[1755540856397,2.85,183.46,183.38,3.01]
[1755540856691,8.92974648,183.45,183.38,3.01]
[1755540856991,2.85,183.46,183.38,3.01]
[1755540857194,8.93140276,183.45,183.38,3.01]
[1755540857493,3.95321753,183.44,183.38,3.01]
[1755540857688,2.85,183.46,183.38,3.01]
[1755540857891,2.85,183.44,183.35,3.01]
[1755540858187,8.93271566,183.43,183.35,3.01]
[1755540858392,11.78271566,183.42,183.35,3.01]
[1755540858596,2.85,183.42,183.35,3.01]
[1755540860186,3.95845577,183.41,183.35,3.01]
[1755540860493,2.85,183.42,183.35,3.01]
[1755540860694,3.95829476,183.41,183.35,3.01]
[1755540860895,2.85,183.42,183.35,3.01]
[1755540861097,3.95692174,183.41,183.35,3.01]
[1755540861296,2.85,183.42,183.35,3.01]
[1755540861496,3.95809158,183.41,183.35,3.01]
[1755540861698,2.85,183.42,183.35,3.01]
[1755540861894,3.95810717,183.41,183.35,3.01]
[1755540862094,2.85,183.42,183.35,3.01]
[1755540862286,8.94335452,183.41,183.35,3.01]
[1755540862489,2.85,183.42,183.35,3.01]
[1755540862692,8.93990123,183.41,183.35,3.01]
[1755540862995,11.85950055,183.4,183.33,3.80769476]
[1755540863196,2.92,183.4,183.33,3.80769476]
[1755540863397,2.92,183.4,183.34,2.95]
[1755540863895,50.0,183.45,183.34,2.95]
[1755540864202,11.85872989,183.44,183.37,2.95]
[1755540864397,8.93872989,183.43,183.37,2.95]
[1755540864702,11.85872989,183.42,183.38,2.95]
[1755540864900,3.95871319,183.41,183.38,2.95]
[1755540865698,3.95871319,183.41,183.36,3.80769476]
[1755540865901,3.95871319,183.41,183.38,2.95]
[1755540866095,2.92,183.42,183.38,2.95]
[1755540866398,2.92,183.42,183.36,3.80769476]
[1755540866399,2.92,183.42,183.39,2.95]
[1755540866902,50.0,183.45,183.39,2.95]
[1755540867102,8.94081049,183.44,183.37,2.95]
[1755540867397,8.94112339,183.43,183.37,2.95]
[1755540867601,52.92,183.45,183.38,2.95]
[1755540867602,8.94112339,183.42,183.38,2.95]
[1755540867900,6.87941111,183.41,183.38,2.95]
[1755540868102,6.8824073,183.4,183.36,6.75769476]
[1755540868298,2.92,183.39,183.36,2.95]
[1755540869190,2.92,183.44,183.34,3.80769476]
[1755540869406,2.92,183.42,183.33,2.95]
[1755540869601,2.92,183.4,183.33,2.95]
[1755540869792,3.96326078,183.39,183.33,2.95]
[1755540869998,2.92,183.4,183.33,2.95]
[1755540870194,3.96347013,183.39,183.33,2.95]
[1755540870498,2.92,183.4,183.33,2.95]
[1755540870698,3.96330055,183.39,183.33,2.95]
[1755540870906,2.92,183.4,183.33,2.95]
[1755540871202,3.96330447,183.39,183.33,2.95]
[1755540871402,2.92,183.4,183.33,2.95]
[1755540871602,3.96378715,183.39,183.33,2.95]
[1755540871800,2.92,183.4,183.33,2.95]
[1755540871998,3.96586362,183.39,183.33,2.95]
[1755540872192,2.92,183.4,183.33,2.95]
[1755540872503,3.96612603,183.39,183.33,2.95]
[1755540872707,2.92,183.4,183.33,2.95]
[1755540872904,3.96673726,183.39,183.33,2.95]
[1755540873110,52.92,183.43,183.33,2.95]
[1755540873408,8.95652192,183.42,183.33,2.95]
[1755540873600,8.95652192,183.41,183.33,2.95]
[1755540873800,8.95652192,183.4,183.36,2.95]
[1755540874001,3.96652829,183.39,183.35,2.95]
[1755540874305,52.92,183.43,183.35,2.95]
[1755540874507,8.95722464,183.42,183.35,2.95]
[1755540874696,8.95722464,183.41,183.35,2.95]
[1755540874902,52.92,183.43,183.37,3.80769476]
[1755540874903,2.92,183.43,183.37,3.80769476]
[1755540875103,8.95979091,183.42,183.4,2.95]
[1755540875408,3.96801257,183.41,183.4,2.95]
[1755540876000,2.92,183.44,183.37,3.80769476]
[1755540876294,3.96801257,183.43,183.37,3.80769476]
[1755540876506,11.87994913,183.42,183.38,2.95]
[1755540876702,8.95994913,183.41,183.38,2.95]
[1755540876901,2.92,183.42,183.38,2.95]
[1755540877099,8.96003056,183.41,183.39,2.95]
[1755540877302,2.92,183.45,183.39,2.95]
[1755540877498,11.88132298,183.44,183.39,2.95]
[1755540877703,11.88132298,183.43,183.39,2.95]
[1755540877897,2.92,183.41,183.37,2.95]
[1755540878103,2.92,183.45,183.32,3.80769476]
[1755540878399,2.92,183.43,183.33,2.95]
[1755540878601,3.80769476,183.46,183.33,2.95]
[1755540878602,2.92,183.41,183.33,2.95]
[1755540878802,8.96239896,183.4,183.33,2.95]
[1755540879009,2.92,183.41,183.33,2.95]
[1755540879207,8.96100495,183.4,183.33,2.95]
[1755540879407,2.92,183.41,183.33,2.95]
[1755540879710,8.96147041,183.4,183.33,2.95]
[1755540879908,2.92,183.41,183.33,2.95]
[1755540880204,8.95949875,183.4,183.33,2.95]
[1755540880402,50.0,183.45,183.33,2.95]
[1755540880604,8.95831892,183.44,183.36,2.95]
[1755540880808,8.95831892,183.43,183.36,8.4007]
[1755540881002,8.95831892,183.42,183.36,2.95]
[1755540881202,52.92,183.45,183.33,2.95]
[1755540881203,2.92,183.4,183.33,2.95]
[1755540882503,2.92,183.4,183.32,3.80769476]
[1755540882704,2.92,183.4,183.33,2.95]
[1755540884806,3.96476257,183.39,183.33,2.95]
[1755540885005,2.92,183.4,183.33,2.95]
[1755540885308,3.96464812,183.39,183.33,2.95]
[1755540885508,2.92,183.4,183.33,2.95]
[1755540885708,3.95486026,183.39,183.33,2.95]
[1755540885906,2.92,183.4,183.33,2.95]
[1755540886106,3.95482249,183.39,183.33,2.95]
[1755540886306,2.92,183.4,183.33,2.95]
[1755540886610,2.92,183.38,183.32,3.80769476]
[1755540888411,2.92,183.38,183.29,6.75769476]
[1755540888807,2.92,183.38,183.32,3.80769476]
[1755540889009,52.92,183.42,183.33,2.95]
[1755540889212,8.94164961,183.41,183.33,2.95]
[1755540889411,11.86164961,183.4,183.33,2.95]
[1755540889608,8.94164961,183.39,183.33,2.95]
[1755540889809,8.94164961,183.38,183.33,2.95]
[1755540890113,2.92,183.4,183.34,2.95]
[1755540890316,8.94197444,183.39,183.34,2.95]
[1755540890512,11.86197444,183.38,183.34,2.95]
[1755540890717,2.92,183.38,183.34,2.95]
[1755540891007,2.92,183.37,183.33,2.95]
[1755540891212,2.92,183.41,183.3,2.95]
[1755540891415,2.92,183.39,183.3,2.95]
[1755540891615,8.94050176,183.38,183.3,2.95]
[1755540891918,2.92,183.39,183.3,2.95]
[1755540892119,8.94038088,183.38,183.3,2.95]
[1755540892320,2.92,183.39,183.3,2.95]
[1755540892520,8.91998774,183.38,183.3,8.4024]
[1755540892821,2.92,183.39,183.3,8.4024]
[1755540893008,8.92019222,183.38,183.31,3.08]
[1755540893213,2.92,183.39,183.31,3.08]
[1755540893417,3.95531288,183.38,183.31,3.08]
[1755540893619,2.92,183.39,183.31,8.5323]
[1755540893816,8.92257072,183.38,183.31,8.5323]
[1755540894112,2.92,183.39,183.31,8.5323]
[1755540894317,8.9220629,183.38,183.31,8.5323]
[1755540894520,2.92,183.39,183.31,8.5323]
[1755540894718,8.92285133,183.38,183.31,8.5323]
[1755540895018,2.92,183.39,183.31,8.5323]
[1755540895221,8.92295426,183.38,183.31,3.08]
[1755540895421,3.95565206,183.37,183.31,3.08]
[1755540895725,2.92,183.39,183.31,3.08]
[1755540895914,8.92308436,183.38,183.32,3.80769476]
[1755540896114,3.95571556,183.37,183.35,3.08]
[1755540896316,2.92,183.39,183.35,3.08]
[1755540896520,3.95571613,183.38,183.36,3.08]
[1755540896722,53.04,183.42,183.36,3.08]
[1755540896915,8.92392119,183.41,183.33,5.4516]
[1755540897114,3.04,183.39,183.33,8.5316]
[1755540897420,8.9226963,183.38,183.32,3.80769476]
[1755540897625,11.96259403,183.37,183.32,3.80769476]
[1755540897821,3.04,183.37,183.33,3.08]
[1755540898325,3.04,183.37,183.32,3.80769476]
[1755540898624,3.04,183.37,183.34,3.08]
[1755540899026,3.04,183.37,183.32,3.80769476]
[1755540899226,3.04,183.37,183.33,3.08]
[1755540900425,3.04,183.4,183.34,3.08]
[1755540900630,11.96486187,183.39,183.35,3.08]
[1755540900928,3.95575633,183.38,183.32,12.33959476]
[1755540901124,3.95502636,183.37,183.32,6.88769476]
[1755540901425,3.04,183.4,183.33,3.08]
[1755540901626,8.92354902,183.39,183.33,3.08]
[1755540901827,3.04,183.37,183.33,3.08]
[1755540904334,50.0,183.42,183.31,3.80769476]
[1755540904632,11.95850613,183.41,183.34,3.08]
[1755540904829,8.91850613,183.4,183.34,3.08]
[1755540905025,3.04,183.41,183.31,3.80769476]
[1755540905026,11.95850613,183.39,183.35,3.08]
[1755540905223,53.04,183.42,183.36,3.08]
[1755540905426,3.04,183.4,183.36,3.08]
[1755540905630,3.04,183.4,183.37,3.08]
[1755540906031,3.04,183.4,183.34,3.08]
[1755540906226,8.91822156,183.39,183.36,3.08]
[1755540906426,50.0,183.42,183.35,3.08]
[1755540906734,8.91891957,183.41,183.35,3.08]
[1755540906935,3.04,183.43,183.35,8.531]
[1755540907140,8.91886524,183.42,183.35,3.08]
[1755540907436,8.91886524,183.41,183.35,8.5311]
[1755540907622,3.04,183.43,183.36,3.08]
[1755540907822,8.91864357,183.42,183.36,3.08]
[1755540908025,11.95864357,183.41,183.37,3.08]
[1755540908232,6.99359846,183.4,183.37,3.08]
[1755540908431,3.04,183.4,183.37,3.08]
[1755540909031,8.91507815,183.39,183.32,3.80769476]
[1755540909224,144.8575446,183.48,183.3,3.08]
[1755540909225,11.95475747,183.38,183.3,3.08]
[1755540909426,3.04,183.38,183.3,6.88769476]
[1755540909726,3.04,183.36,183.27,3.08]
[1755540909928,3.04,183.34,183.27,3.08]
[1755540910126,3.04,183.34,183.23,3.80769476]
[1755540910127,3.04,183.32,183.23,12.34229476]
[1755540910324,4.04320583,183.31,183.23,6.88769476]
[1755540910530,4.04320583,183.3,183.23,6.88769476]
[1755540910732,4.04320583,183.29,183.23,6.88769476]
[1755540910931,3.04,183.3,183.23,6.88769476]
[1755540911133,4.03969834,183.29,183.23,6.88769476]
[1755540911434,3.08046044,183.28,183.23,6.88769476]
[1755540911833,3.04,183.27,183.23,6.88769476]
[1755540912243,0.04046044,183.28,183.07,3.08]
[1755540912244,3.04,183.25,183.07,3.08]
[1755540912442,172.64953159,183.26,183.1,3.08]
[1755540912443,6.84769476,183.23,183.1,3.08]
[1755540912634,12.18296612,183.22,183.12,3.80769476]
[1755540912840,9.14296612,183.21,183.12,3.80769476]
[1755540913036,0.03629087,183.18,183.1,3.08]
[1755540913237,0.03629087,183.18,183.04,3.80769476]
[1755540913238,0.03629087,183.18,183.13,3.08]
[1755540913536,0.03629087,183.18,183.15,3.08]
[1755540913739,3.80769476,183.23,183.08,3.08]
[1755540914039,0.03787285,183.18,183.12,3.80769476]
[1755540914245,0.03787285,183.18,183.1,6.88769476]
[1755540914943,0.03787285,183.18,183.11,3.08]
[1755540915140,0.03787285,183.18,183.13,3.80769476]
[1755540915339,0.03787285,183.18,183.13,6.88769476]
[1755540915545,3.04,183.2,183.14,3.08]
[1755540915931,0.04156154,183.17,183.13,9.26509476]
[1755540916138,0.04156154,183.17,183.16,3.08]
[1755540916345,3.04,183.23,183.16,3.08]
[1755540916839,0.04178014,183.18,183.17,3.08]
[1755540917041,3.04,183.27,183.17,3.08]
[1755540917244,3.04,183.27,183.07,0.95024848]
[1755540917245,3.04,183.27,183.2,3.08]
[1755540917447,3.04,183.31,183.23,3.08]
[1755540917648,3.04,183.31,183.25,3.80769476]
[1755540918240,3.04,183.31,183.26,0.03808633]
[1755540918441,3.04,183.35,183.27,3.08]
[1755540918649,5.39998743,183.34,183.27,3.08]
[1755540918850,5.39998743,183.33,183.25,3.80769476]
[1755540919036,5.39974343,183.32,183.23,3.08]
[1755540919243,3.04,183.3,183.29,0.04012031]
[1755540920040,3.04,183.35,183.29,0.04012031]
[1755540920342,8.4390899,183.34,183.29,0.04012031]
[1755540920548,5.3990899,183.33,183.29,0.04012031]
[1755540921246,3.04,183.34,183.29,0.04012031]
[1755540921247,3.04,183.34,183.29,3.12012031]
[1755540921645,3.04,183.38,183.3,3.08]
[1755540921848,5.40092871,183.37,183.31,3.80769476]
[1755540922042,3.04,183.38,183.31,3.80769476]
[1755540922241,3.04,183.38,183.31,9.25999476]
[1755540922443,3.04,183.38,183.32,0.0405177]
[1755540922743,3.04,183.38,183.33,3.0]
[1755540922942,366.54,183.4,183.32,0.0405177]
[1755540923142,3.04,183.38,183.32,0.0405177]
[1755540923346,370.34769476,183.4,183.32,0.0405177]
[1755540923347,13.30165042,183.37,183.32,0.0405177]
[1755540923548,3.04,183.33,183.32,0.0405177]
[1755540923748,8.51056609,183.33,183.32,0.0405177]
[1755540924353,8.51056609,183.33,183.23,3.0]
[1755540924545,5.47056609,183.32,183.23,3.0]
[1755540924747,8.47056609,183.31,183.23,3.0]
[1755540925045,5.47056609,183.3,183.23,3.0]
[1755540925352,5.47056609,183.29,183.23,3.0]
[1755540925548,8.5053392,183.28,183.23,3.0]
[1755540925753,3.03477311,183.28,183.19,11.4737782]
[1755540926050,3.03477311,183.28,183.19,14.4737782]
[1755540926445,0.03477311,183.28,183.21,3.0]
[1755540926952,5.46513675,183.27,183.17,5.4564]
[1755540927141,5.4640162,183.26,183.16,3.0]
[1755540927343,5.46296601,183.25,183.16,3.0]
[1755540927545,3.0,183.28,183.16,3.0]
[1755540927742,0.03909611,183.23,183.16,3.0]
[1755540932051,0.03909611,183.23,183.19,6.0179782]
[1755540932458,3.0,183.3,183.22,3.0]
[1755540932652,5.46170651,183.29,183.22,3.0]
[1755540932853,5.46170651,183.28,183.22,3.0]
[1755540933058,3.0,183.3,183.24,0.03442714]
[1755540933252,5.46002598,183.29,183.24,0.03442714]
[1755540933455,3.04,183.27,183.24,0.03442714]
[1755540933654,8.50002598,183.26,183.24,0.03442714]
[1755540933858,5.46002598,183.25,183.24,0.03442714]
[1755540934262,8.50002598,183.25,183.24,0.03442714]
[1755540937359,8.49482175,183.25,183.24,0.03442714]
[1755540938163,5.45482175,183.25,183.24,0.03442714]
[1755540939063,8.49482175,183.25,183.24,0.03442714]
[1755540943362,12.5049158,183.25,183.24,0.03442714]
[1755540944560,12.5049158,183.25,183.17,3.0]
[1755540944759,5.45482175,183.24,183.17,3.0]
[1755540944960,5.45482175,183.23,183.17,3.0]
[1755540945263,5.45482175,183.22,183.13,3.0]
[1755540945465,5.45482175,183.21,183.13,3.0]
[1755540945667,3.04,183.25,183.13,3.0]
[1755540945868,0.03933686,183.19,183.17,5.4564]
[1755540946070,0.03933686,183.19,183.18,3.0]
[1755540946370,3.04,183.25,183.18,3.0]
[1755540946572,0.03687913,183.2,183.18,3.0]
[1755540946768,0.03687913,183.2,183.19,3.0]
[1755540950368,5.49520662,183.2,183.19,3.0]
[1755540952458,5.50100554,183.2,183.19,3.0]
[1755540954773,0.03687913,183.2,183.19,3.0]
[1755540955467,5.32075086,183.2,183.19,3.0]
[1755540956671,5.32075086,183.2,183.17,3.82092651]
[1755540956863,0.03687913,183.2,183.17,3.82092651]
[1755540957062,0.03687913,183.2,183.17,6.75092651]
[1755540957272,0.03687913,183.2,183.19,2.93]
[1755540957869,0.03687913,183.2,183.15,2.93]
[1755540958073,0.03687913,183.2,183.11,5.4581]
[1755540958074,5.2875604,183.19,183.11,5.4581]
[1755540958269,5.2875604,183.18,183.11,2.93]
[1755540958470,5.2875604,183.17,183.11,2.93]
[1755540958671,3.03,183.2,183.11,2.93]
[1755540958872,0.03756404,183.16,183.12,2.93]
[1755540959765,0.03756404,183.16,183.13,2.93]
[1755540960170,0.03756404,183.16,183.14,2.93]
[1755540960375,0.03756404,183.16,183.13,5.4575]
[1755540960570,0.03756404,183.16,183.14,2.93]
[1755540961171,0.03756404,183.16,183.11,3.82092651]
[1755540961380,0.03756404,183.16,183.12,2.93]
[1755540961773,0.03756404,183.16,183.13,2.93]
[1755540963176,3.06756404,183.16,183.1,8.3886]